Workbook

Sheet Rev
A2: Pete Anslow | C2: This spreadsheet includes User Defined Functions so Macros must be Enabled for proper operation
A3: Paul Kolesar | C3: The worksheet is locked except for input cells. Use Tools, Protection, Unprotect sheet to unlock (no password needed)
C4: User configurable cell are in bold blue font
A5: Duane Remein | C5: Channel Est. tab can be used to derive nearest grid frequencies to a given wavenength (nm)
A7: V 1.0 | B7: 2007-01-17 | C7: Initial version in anslow_02_0107.xls
A8: V 2.0 | B8: 2007-03-07 | C8: anslow_02_0307.xls This version agreed at Fiber Optic Ad Hoc 4 April 2007
A9: V 3.0 Draft 2 | B9: 2007-11-12 | C9: Re-arranged to have 4 separate channels and predict max optical skew variation. Equations moved to user-defined functions.
A10: V4.0 | B10: 2016-05-01 | C10: remein_3ca_3_0516.xlsx Added ability to define custom channel wavelengths & estimated channel frequency tab

Sheet 4 Chan WDM
B1: Parameter | C1: Value | D1: Units
A2: Inputs | B2: Aggregate bit rate after PCS coding | C2: 25 | D2: GBd
B3: Link length | C3: 20 | D3: km
B4: Fibre type (G.652.A&B (B1.1) or G.652.C&D (B1.3)) | C4: G.652.A&B | D4: -
B5: Grid type | C5: DWDM | D5: - | E5: Custom Grid wavelengths
B6: DWDM Grid Spacing | C6: 800 | D6: GHz | E6: 1 | F6: 2 | G6: 3 | H6: 4 | I6: Channel
B7: DWDM Frequency tolerance (+/-% of spacing) | C7: 20 | D7: % | E7: 1290 | F7: 1310 | G7: 1325 | H7: 1340 | I7: Min
B8: DWDM Channel 1 centre frequency | C8: 231.9 | D8: THz | E8: 1300 | F8: 1315 | G8: 1330 | H8: 1345 | I8: Max
B9: ITU CWDM Channel 1 centre wavelength | C9: 1291 | D9: nm
B10: ITU CWDM Wavelength tolerance (+/- nm) | C10: 6.5 | D10: nm
A11: Fibre limits | B11: Maximum zero dispersion wavelength (l0 max) | C11: 1324 | D11: nm
B12: Maximum zero dispersion wavelength (l0 min) | C12: 1300 | D12: nm
B13: Maximum fibre dispersion slope | C13: 0.093 | D13: ps/(nm^2.km)
A14: Results | B14: Maximum loss for any channel | C14: =MAX(E29:H30) -> 8.732501121 | D14: dB
B15: Maximum dispersion for any channel | C15: =MAX(E31:H32) -> 13.27545979 | D15: ps/nm
B16: Minimum dispersion for any channel | C16: =MIN(E33:H34) -> -62.01894351 | D16: ps/nm
B17: Maximum optical skew | C17: =MAX(C37,C41) -> 4.486418452 | D17: UI
B18: Maximum optical skew variation | C18: =MAX(C38,C42) -> 1.054350765 | D18: UI
A19: ="Channels for Grid Type " & C5 -> Channels for Grid Type DWDM | B19: Channel number | D19: - | E19: 1 | F19: 2 | G19: 3 | H19: 4
B20: Channel frequency upper bound | D20: THz | E20: =E21+$C6/1000*$C7/100 -> 232.06 | F20: =F21+$C6/1000*$C7/100 -> 231.26 | G20: =G21+$C6/1000*$C7/100 -> 230.46 | H20: =H21+$C6/1000*$C7/100 -> 229.66
B21: Channel centre frequency | D21: THz | E21: =C8 -> 231.9 | F21: =E21-$C6/1000 -> 231.1 | G21: =F21-$C6/1000 -> 230.3 | H21: =G21-$C6/1000 -> 229.5
B22: Channel frequency lower bound | D22: THz | E22: =E21-$C6/1000*$C7/100 -> 231.74 | F22: =F21-$C6/1000*$C7/100 -> 230.94 | G22: =G21-$C6/1000*$C7/100 -> 230.14 | H22: =H21-$C6/1000*$C7/100 -> 229.34
B23: channel width | D23: nm | E23: =E27-E28 -> 1.783895421 | F23: =F19-F28 -> -1294.34376 | G23: =G19-G28 -> -1297.843782 | H23: =H19-H28 -> -1301.375155
B24: channel center | D24: nm | E24: =E28+(E23)/2 -> 1292.766713 | F24: =F28+(F23)/2 -> 649.1718801 | G24: =G28+(G23)/2 -> 651.921891 | H24: =H28+(H23)/2 -> 654.6875773
B25: channel guard below | D25: nm | E25: n/a | F25: =F28-E19 -> 1295.34376 | G25: =G28-F19 -> 1298.843782 | H25: =H28-G19 -> 1302.375155
B26: channel guard above | D26: nm | E26: =F28-E19 -> 1295.34376 | F26: =G28-F19 -> 1298.843782 | G26: =H28-G19 -> 1302.375155 | H26: n/a
B27: Maximum channel wavelength | D27: nm | E27: =VLOOKUP($C$5,MaxLambdaTable,E19+2,FALSE) -> 1293.658661 | F27: =VLOOKUP($C$5,MaxLambdaTable,F19+2,FALSE) -> 1298.140028 | G27: =VLOOKUP($C$5,MaxLambdaTable,G19+2,FALSE) -> 1302.652551 | H27: =VLOOKUP($C$5,MaxLambdaTable,H19+2,FALSE) -> 1307.196555
B28: Minimum channel wavelength | D28: nm | E28: =VLOOKUP($C$5,MinLambdaTable,E19+2,FALSE) -> 1291.874765 | F28: =VLOOKUP($C$5,MinLambdaTable,F19+2,FALSE) -> 1296.34376 | G28: =VLOOKUP($C$5,MinLambdaTable,G19+2,FALSE) -> 1300.843782 | H28: =VLOOKUP($C$5,MinLambdaTable,H19+2,FALSE) -> 1305.375155
A29: Loss | B29: Maximum fibre loss at max channel wavelength | D29: dB | E29: =fibre_loss($C$4,E27)*$C$3 -> 8.687031661 | F29: 8.579423588 | G29: 8.483192771 | H29: 8.401847098
B30: Maximum fibre loss at min channel wavelength | D30: dB | E30: 8.732501121 | F30: 8.621293303 | G30: 8.520098467 | H30: 8.432368765
A31: Dispersion | B31: Maximum dispersion at max channel wavelength | D31: ps/nm | E31: =fibre_dispersion($C$12,$C$13,E27)*$C$3 -> -11.88190054 | F31: =fibre_dispersion($C$12,$C$13,F27)*$C$3 -> -3.466990809 | G31: =fibre_dispersion($C$12,$C$13,G27)*$C$3 -> 4.918694959 | H31: 13.27545979
B32: Maximum dispersion at min channel wavelength | D32: ps/nm | E32: -15.25611462 | F32: -6.829430927 | G32: 1.567908181 | H32: 9.936204891
B33: Minimum dispersion at max channel wavelength | D33: ps/nm | E33: =fibre_dispersion($C$11,$C$13,E27)*$C$3 -> -58.45154473 | F33: -49.55600259 | G33: -40.69300283 | H33: -31.86223092
B34: Minimum dispersion at min channel wavelength | D34: ps/nm | E34: -62.01894351 | F34: -53.11029682 | G34: -44.23431774 | H34: -35.39069256
A35: Skew | B35: Relative delay at max channel wavelength and l0 max | D35: UI | E35: =fibre_delay($C$11,$C$13,E27)*$C$3*$C$2/4000 -> 5.477206323 | F35: 3.964859137 | G35: 2.692421368 | H35: 1.662357432
B36: Relative delay at min channel wavelength and l0 max | D36: UI | E36: 6.148775883 | F36: 4.541145457 | G36: 3.172450581 | H36: 2.045138637
B37: Max optical skew for l0 max | C37: =MAX(E35:H36)-MIN(E35:H37) -> 4.486418452 | D37: UI | E37: =IF(AND(E$28<$C11,E$27>$C11),0,"") ->  | F37: =IF(AND(F$28<$C11,F$27>$C11),0,"") ->  | G37: =IF(AND(G$28<$C11,G$27>$C11),0,"") ->  | H37: =IF(AND(H$28<$C11,H$27>$C11),0,"") -> 
B38: Max change of optical skew for l0 max | C38: =C37-(MAX(MIN(E35:E36),MIN(F35:F36),MIN(G35:G36),MIN(H35:H36))-MIN(MAX(E35:E36),MAX(F35:F36),MAX(G35:G36),MAX(H35:H36))) -> 1.054350765 | D38: UI
B39: Relative delay at max channel wavelength and l0 min | D39: UI | E39: =fibre_delay($C$12,$C$13,E27)*$C$3*$C$2/4000 -> 0.2348827995 | F39: 0.02013714727 | G39: 0.04081365947 | H39: 0.2993767506
B40: Relative delay at min channel wavelength and l0 min | D40: UI | E40: 0.3861553149 | F40: 0.07792132431 | G40: 0.004135630532 | H40: 0.1672456152
B41: Max optical skew for l0 min | C41: =MAX(E39:H40)-MIN(E39:H41) -> 0.3820196844 | D41: UI | E41: =IF(AND(E$28<$C12,E$27>$C12),0,"") ->  | F41: =IF(AND(F$28<$C12,F$27>$C12),0,"") ->  | G41: =IF(AND(G$28<$C12,G$27>$C12),0,"") ->  | H41: =IF(AND(H$28<$C12,H$27>$C12),0,"") -> 
B42: Max change of optical skew for l0 min | C42: =C41-(MAX(MIN(E39:E40),MIN(F39:F40),MIN(G39:G40),MIN(H39:H40))-MIN(MAX(E39:E40),MAX(F39:F40),MAX(G39:G40),MAX(H39:H40))) -> 0.1879505444 | D42: UI
A43: Grids | B43: Maximum channel wavelength | C43: CWDM LX4 | D43: nm | E43: 1282.4 | F43: 1306.9 | G43: 1331.4 | H43: 1355.9
C44: LR4 | D44: nm | E44: 1264.5 | F44: 1284.5 | G44: 1304.5 | H44: 1324.5
C45: CWDM ITU | D45: nm | E45: 1297.5 | F45: 1317.5 | G45: 1337.5 | H45: 1357.5
C46: DWDM | D46: nm | E46: =IF($C$5="CWDM LX4",1282.4+24.5*(E$19-1),IF($C$5="CWDM ITU",$C$9+$C$10+20*(E$19-1),IF($C$5="DWDM",299792458/E$22/1000,IF($C$5="Custom",E55,"ERR!")))) -> 1293.658661 | F46: =IF($C$5="CWDM LX4",1282.4+24.5*(F$19-1),IF($C$5="CWDM ITU",$C$9+$C$10+20*(F$19-1),IF($C$5="DWDM",299792458/F$22/1000,IF($C$5="Custom",F55,"ERR!")))) -> 1298.140028 | G46: =IF($C$5="CWDM LX4",1282.4+24.5*(G$19-1),IF($C$5="CWDM ITU",$C$9+$C$10+20*(G$19-1),IF($C$5="DWDM",299792458/G$22/1000,IF($C$5="Custom",G55,"ERR!")))) -> 1302.652551 | H46: =IF($C$5="CWDM LX4",1282.4+24.5*(H$19-1),IF($C$5="CWDM ITU",$C$9+$C$10+20*(H$19-1),IF($C$5="DWDM",299792458/H$22/1000,IF($C$5="Custom",H55,"ERR!")))) -> 1307.196555
C47: Custom | D47: nm | E47: =E7 -> 1290 | F47: =F7 -> 1310 | G47: 1325 | H47: 1340
B48: Minimum channel wavelength | C48: CWDM LX4 | D48: nm | E48: 1269 | F48: 1293.5 | G48: 1318 | H48: 1342.5
C49: LR4 | D49: nm | E49: 1277.5 | F49: 1297.5 | G49: 1317.5 | H49: 1337.5
C50: CWDM ITU | D50: nm | E50: 1284.5 | F50: 1304.5 | G50: 1324.5 | H50: 1344.5
C51: DWDM | D51: nm | E51: =IF($C$5="CWDM LX4",1269+24.5*(E$19-1),IF($C$5="CWDM ITU",$C$9-$C$10+20*(E$19-1),IF($C$5="DWDM",299792458/E$20/1000,IF($C$5="Custom",E56,"ERR!")))) -> 1291.874765 | F51: =IF($C$5="CWDM LX4",1269+24.5*(F$19-1),IF($C$5="CWDM ITU",$C$9-$C$10+20*(F$19-1),IF($C$5="DWDM",299792458/F$20/1000,IF($C$5="Custom",F56,"ERR!")))) -> 1296.34376 | G51: =IF($C$5="CWDM LX4",1269+24.5*(G$19-1),IF($C$5="CWDM ITU",$C$9-$C$10+20*(G$19-1),IF($C$5="DWDM",299792458/G$20/1000,IF($C$5="Custom",G56,"ERR!")))) -> 1300.843782 | H51: =IF($C$5="CWDM LX4",1269+24.5*(H$19-1),IF($C$5="CWDM ITU",$C$9-$C$10+20*(H$19-1),IF($C$5="DWDM",299792458/H$20/1000,IF($C$5="Custom",H56,"ERR!")))) -> 1305.375155
C52: Custom | D52: nm | E52: =E8 -> 1300 | F52: =F8 -> 1315 | G52: 1330 | H52: 1345
E54: =E27+(E28-E27)/2 -> 1292.766713 | F54: =F27+(F28-F27)/2 -> 1297.241894 | G54: 1301.748166 | H54: 1306.285855
E55: =E$54-E27 -> -0.8919477105 | F55: =F$54-F27 -> -0.8981337215 | G55: -0.9043843101 | H55: -0.9107003782
E56: =E$54-E28 -> 0.8919477105 | F56: =F$54-F28 -> 0.8981337215 | G56: 0.9043843101 | H56: 0.9107003782

Sheet Functions
D1: 0.093
B2: G.652.A&B | C2: G.652.C&D | D2: 1300 | E2: 1324
A3: lambda | B3: Max Loss | C3: Max Loss | D3: D max | E3: D min | F3: Relative Delay
A4: (nm) | B4: (dB/km) | C4: (dB/km) | D4: (ps/nm.km) | E4: (ps/nm.km) | F4: (ps/km)
F5: for l0 min | G5: for l0 max
A6: 1260 | B6: =fibre_loss(B$2,$A6) -> 0.4779123208 | C6: =fibre_loss(C$2,$A6) -> 0.4781240898 | D6: =fibre_dispersion(D$2,$D$1,$A6) -> -3.900921667 | E6: =fibre_dispersion(E$2,$D$1,$A6) -> -6.421036843 | F6: =fibre_delay(D$2,$D$1,$A6) -> 76.78065004 | G6: =fibre_delay(E$2,$D$1,$A6) -> 200.2612109
A7: 1270 | B7: =fibre_loss(B$2,$A7) -> 0.4663386789 | C7: 0.4597051228 | D7: =fibre_dispersion(D$2,$D$1,$A7) -> -2.890424285 | E7: -5.351476693 | F7: =fibre_delay(D$2,$D$1,$A7) -> 42.84442076 | G7: =fibre_delay(E$2,$D$1,$A7) -> 141.4207001
A8: 1280 | B8: 0.4528087616 | C8: 0.4457503817 | D8: -1.904049625 | E8: -4.307870577 | F8: 18.89176025 | G8: 93.145169
A9: 1290 | B9: 0.4390788187 | C9: 0.4350262318 | D9: -0.9408699479 | E9: -3.289220322 | F9: 4.686116369 | G9: 55.18010741
A10: 1300 | B10: 0.4269051 | C10: 0.4265304787 | D10: 0 | E10: -2.294573471 | F10: 0 | G10: 27.28075603
A11: 1310 | B11: 0.4180438553 | C11: 0.419465439 | D11: 0.9194052343 | E11: -1.323020858 | F11: 4.614571558 | G11: 9.21166176
A12: 1320 | B12: 0.4142513344 | C12: 0.4132125432 | D12: 1.818152653 | E12: -0.3736943277 | F12: 18.31924931 | G12: 0.7462562534
A13: 1330 | B13: 0.4172837871 | C13: 0.4073084707 | D13: 2.697013025 | E13: 0.5542354036 | F13: 40.91133826 | G13: 1.666456637
A14: 1340 | B14: 0.4288974632 | C14: 0.4014228178 | D14: 3.556722868 | E14: 1.461560766 | F14: 72.19567832 | G14: 11.76228698
A15: 1350 | B15: 0.4508486125 | C15: 0.3953372974 | D15: 4.397986206 | E15: 2.349039231 | F15: 111.9843107 | G15: 30.83151931
A16: 1360 | B16: 0.4848934848 | C16: 0.3889264723 | D16: 5.221476233 | E16: 3.217395098 | F16: 160.0961613 | G16: 58.6793331
A17: 1370 | C17: 0.3821400198 | D17: 6.027836875 | E17: 4.06732118 | F17: 216.3567405 | G17: 95.11799198
A18: 1380 | C18: 0.3749865299 | D18: 6.817684264 | E18: 4.899480381 | F18: 280.5978576 | G18: 139.9665369
A19: 1390 | C19: 0.3675188347 | D19: 7.591608129 | E19: 5.714507202 | F19: 352.6573502 | G19: 193.0504947
A20: 1400 | C20: 0.3598208718 | D20: 8.350173105 | E20: 6.513009142 | F20: 432.3788265 | G20: 254.2016009
A21: 1410 | C21: 0.3519960778 | D21: 9.09391997 | E21: 7.295568033 | F21: 519.6114211 | G21: 323.2575367
A22: 1420 | B22: 0.4568392192 | C22: 0.3441573178 | D22: 9.823366815 | E22: 8.062741298 | F22: 614.2095616 | G22: 400.0616787
A23: 1430 | B23: 0.4143705455 | C23: 0.3364183438 | D23: 10.53901014 | E23: 8.815063132 | F23: 716.0327479 | G23: 484.4628604
A24: 1440 | B24: 0.3805744286 | C24: 0.3288867877 | D24: 11.24132591 | E24: 9.553045631 | F24: 824.9453414 | G24: 576.3151459
A25: 1450 | B25: 0.3540799006 | C25: 0.3216586861 | D25: 11.93077053 | E25: 10.27717984 | F25: 940.8163644 | G25: 675.4776142
A26: 1460 | B26: 0.3336394885 | C26: 0.3148145379 | D26: 12.60778177 | E26: 10.98793678 | F26: 1063.519309 | G26: 781.8141539
A27: 1470 | B27: 0.3181292149 | C27: 0.3084168935 | D27: 13.27277965 | E27: 11.68576834 | F27: 1192.931957 | G27: 895.1932672
A28: 1480 | B28: 0.3065485971 | C28: 0.3025094777 | D28: 13.92616729 | E28: 12.37110826 | F28: 1328.936203 | G28: 1015.487884
A29: 1490 | B29: 0.2980206479 | C29: 0.2971178441 | D29: 14.56833169 | E29: 13.04437291 | F29: 1471.417894 | G29: 1142.575183
A30: 1500 | B30: 0.291791875 | C30: 0.2922515624 | D30: 15.19964444 | E30: 13.7059621 | F30: 1620.266667 | G30: 1276.336426
A31: 1510 | B31: 0.2872322814 | C31: 0.2879079386 | D31: 15.82046251 | E31: 14.35625988 | F31: 1775.375802 | G31: 1416.656789
A32: 1520 | B32: 0.2838353651 | C32: 0.2840772658 | D32: 16.43112884 | E32: 14.99563524 | F32: 1936.642079 | G32: 1563.425217
A33: 1530 | B33: 0.2812181193 | C33: 0.2807496106 | D33: 17.03197302 | E33: 15.62444279 | F33: 2103.96564 | G33: 1716.534269
A34: 1540 | B34: 0.2791210325 | C34: 0.2779231287 | D34: 17.62331187 | E34: 16.2430234 | F34: 2277.249857 | G34: 1875.879984
A35: 1550 | B35: 0.2774080881 | C35: 0.2756139152 | D35: 18.20545005 | E35: 16.85170485 | F35: 2456.40121 | G35: 2041.361741
A36: 1560 | B36: 0.2760667646 | C36: 0.2738673868 | D36: 18.77868056 | E36: 17.45080239 | F36: 2641.329167 | G36: 2212.882136
A37: 1570 | B37: 0.275208036 | C37: 0.2727711956 | D37: 19.34328526 | E37: 18.04061929 | F37: 2831.946069 | G37: 2390.346855
A38: 1580 | B38: 0.2750663712 | C38: 0.2724696764 | D38: 19.89953541 | E38: 18.62144739 | F38: 3028.167025 | G38: 2573.664561
A39: 1590 | B39: 0.2759997341 | C39: 0.2731798265 | D39: 20.44769208 | E39: 19.19356758 | F39: 3229.9098 | G39: 2762.746778
A40: 1600 | B40: 0.278489584 | C40: 0.2752088172 | D40: 20.98800659 | E40: 19.75725026 | F40: 3437.094727 | G40: 2957.507788
A41: 1610 | B41: 0.2831408753 | C41: 0.2789730381 | D41: 21.52072099 | E41: 20.31275587 | F41: 3649.644599 | G41: 3157.864527
A42: 1620 | B42: 0.2906820573 | C42: 0.2850186743 | D42: 22.04606841 | E42: 20.8603352 | F42: 3867.484591 | G42: 3363.736486

Sheet Channel Est
A1: c | B1: 2.99792458 | C1: M/sec
A2: Base | B2: 193.1 | C2: GHz
A3: Start | B3: =-ROUND((B8-B2)/(B7/1000),0)-10 -> -209 | C3: n
A5: Channel 1 Est.
A6: wavelength | B6: 1287.5 | C6: nm
A7: spacing | B7: 200 | C7: THz
A8: Frequency | B8: =100000*SOL/B6 -> 232.8485111 | C8: GHz
A9: Next lower Grid | B9: =$B$2-B3*$B$7/1000 -> 234.9 | C9: GHz
A11: Flex Grid channels
A12: n | B12: GHz | C12: Wavelength
A13: =INT(B3) -> -209 | B13: =$B$2-A13*($B$7/1000) -> 234.9 | C13: =100000*$B$1/B13 -> 1276.255675
A14: =A13+1 -> -208 | B14: 234.7 | C14: =100000*SOL/B14 -> 1277.343238
A15: =A14+1 -> -207 | B15: 234.5 | C15: =100000*$B$1/B15 -> 1278.432657
A16: -206 | B16: 234.3 | C16: 1279.523935
A17: -205 | B17: 234.1 | C17: 1280.617078
A18: -204 | B18: 233.9 | C18: 1281.712091
A19: -203 | B19: 233.7 | C19: 1282.808977
A20: -202 | B20: 233.5 | C20: =100000*$B$1/B20 -> 1283.907743
A21: -201 | B21: 233.3 | C21: 1285.008393
A22: -200 | B22: 233.1 | C22: 1286.110931
A23: -199 | B23: 232.9 | C23: 1287.215363
A24: -198 | B24: 232.7 | C24: 1288.321693
A25: -197 | B25: 232.5 | C25: 1289.429927
A26: -196 | B26: 232.3 | C26: 1290.540069
A27: -195 | B27: 232.1 | C27: 1291.652124
A28: -194 | B28: 231.9 | C28: 1292.766097
A29: -193 | B29: 231.7 | C29: 1293.881994
A30: -192 | B30: 231.5 | C30: 1294.999819
A31: -191 | B31: 231.3 | C31: 1296.119576
A32: -190 | B32: 231.1 | C32: 1297.241272
A33: -189 | B33: 230.9 | C33: 1298.364911
